Cogmind - Beta 11 @@@ ROGUE MODE // 2022.04.13 @ 22:43:27 Player: RNGesus Result: Destroyed by 8R-AWN with 8R-AWN's Boregun Performance ------------- Evolutions (0) 0 Regions Visited (3) 600 Robots Destroyed (25) 125 Value Destroyed (465) 465 Prototype IDs (23) 460 Alien Tech Used (0) 0 Bonus (-170) -170 TOTAL SCORE: 1480 Bonus ------- Aligned with FarCom 300 Friendly Fire -470 Cogmind --------- Core Integrity 0/250 Matter 83/300 Energy 100/100 System Corruption 0% Temperature Cool (0) Movement Core (1400) Ox27 Location -10/Exiles Parts ------- > --- POWER (1) -------- (None) > --- PROPULSION (2) --- (None) > --- UTILITY (2) ------ Huge Storage Unit > --- WEAPON (2) ------- Assault Rifle > --- INVENTORY (25) --- High-capacity Storage Unit Medium Matter Pod (100) Transport Network Coupler Medium Laser Small Laser Assault Rifle Assault Rifle Light Assault Rifle Rocket Launcher Rocket Launcher Rocket Launcher Rocket Launcher Peak State ------------ > --- POWER ------------ Light Nuclear Core > --- PROPULSION ------- Light Treads Wheel > --- UTILITY ---------- Huge Storage Unit Light Armor Plating > --- WEAPON ----------- Assault Rifle Rocket Launcher > --- INVENTORY -------- Light Treads Wheel High-capacity Storage Unit Structural Scanner Seismic Detector Transport Network Coupler Light Armor Plating Medium Laser Small Laser Assault Rifle Assault Rifle Assault Rifle Assault Rifle Assault Rifle Assault Rifle Assault Rifle Light Assault Rifle Rocket Launcher Rocket Launcher Rocket Launcher [Rating: 12] Favorites ----------- Power Light Nuclear Core Engine Light Ion Engine Power Core Light Nuclear Core Propulsion Light Treads Treads Light Treads Wheel Wheel Utility Light Armor Plating Device Structural Scanner Storage Huge Storage Unit Protection Light Armor Plating Weapon Assault Rifle Energy Gun Small Laser Ballistic Gun Assault Rifle Launcher Rocket Launcher Build | -11 -10 -10 -10 ------- Run | Scr Mat Min Exi Slots Evolved . | . . . . Power . | . . . . Propulsion . | . . . . Utility . | . . . . Weapon . | . . . . Parts Attached 26 | 6 9 2 9 Power 2 | 1 1 . . Engine 1 | 1 . . . Core 1 | . 1 . . Reactor . | . . . . Propulsion 6 | 3 1 . 2 Treads 3 | 2 . . 1 Leg . | . . . . Wheel 3 | 1 1 . 1 Hover . | . . . . Flight . | . . . . Utility 6 | 1 4 . 1 Device 1 | . 1 . . Storage 3 | 1 2 . . Processor . | . . . . Hackware . | . . . . Protection 2 | . 1 . 1 Artifact . | . . . . Weapon 12 | 1 3 2 6 Energy Gun 1 | 1 . . . Energy Cannon . | . . . . Ballistic Gun 8 | . 2 1 5 Ballistic Cannon . | . . . . Launcher 3 | . 1 1 1 Special Weapon . | . . . . Impact Weapon . | . . . . Slashing Weapon . | . . . . Piercing Weapon . | . . . . Special Melee Weapon . | . . . . Unidentified Prototypes . | . . . . Parts Lost 13 | . 1 . 12 Power 2 | . 1 . 1 Propulsion 4 | . . . 4 Utility 2 | . . . 2 Weapon 5 | . . . 5 Highest Loss Streak 12 | . 1 . 12 To Critical Strikes 7 | . . . 7 Average Slot Usage (%) 95 | . 90 100 96 Engine 4 | . 11 . . Core 9 | . 2 14 13 Treads 17 | . 24 14 13 Wheel 9 | . 3 14 12 Storage 14 | . 14 14 14 Protection 12 | . 11 14 12 Energy Gun 4 | . 10 . . Ballistic Gun 20 | . 9 27 27 Naked Turns . | . . . . Heaviest Build 92 | 9 92 92 92 Greatest Support 40 | 40 40 10 10 Greatest Overweight (x) 9 | . 9 9 9 Average Overweight (x) 6 | . 3 9 9 Largest Inventory Capacity 25 | 8 25 25 25 Average Capacity 22 | 7 19 25 25 Most Carried 23 | 5 21 20 23 Average Carried 17 | 3 16 20 18 Final Capacity 25 | 8 25 25 25 Final Carried 20 | 5 20 20 12 Class Distribution -------------------- 100% | Mutant Dominant Class ---------------- Mutant | -10/Materials Mutant | -10/Mines Mutant | -10/Exiles Resources | -11 -10 -10 -10 ----------- Run | Scr Mat Min Exi Matter Collected 721 | 126 244 152 199 Remotely . | . . . . Salvage Created 715 | 37 519 146 13 Parts 39 | 3 24 12 . Haulers Intercepted 2 | . 2 . . Recyclers Shooed 2 | 1 1 . . Parts Field Recycled . | . . . . Retrieved Matter . | . . . . Parts Self-Destructed . | . . . . Prevented . | . . . . Kills | -11 -10 -10 -10 ------- Run | Scr Mat Min Exi Combat Hostiles Destroyed 20 | . 10 5 5 Guns 8 | . 6 2 . AOE 12 | . 4 3 5 Classes Destroyed 9 | 1 6 1 1 Worker 2 | . . 2 . Tunneler 2 | 2 . . . Hauler 2 | . 2 . . Recycler 2 | . 1 1 . Mechanic 1 | . 1 . . Operator 1 | . 1 . . Swarmer 8 | . 3 5 . Grunt 7 | . 7 . . Assembled 7 | . . . 7 Best Kill Streak 5 | 1 5 3 5 Combat Bots Only 5 | . 4 3 5 Max Kills in Single Turn 4 | 1 4 2 4 Gunslinging . | . . . . Exploded 4 | . 3 2 4 Melee . | . . . . Uniques/NPCs Destroyed . | . . . . Combat | -11 -10 -10 -10 -------- Run | Scr Mat Min Exi Damage Taken 1563 | . 359 55 1149 Core 252 | . 50 . 202 Absorbed by Shields . | . . . . Core Remaining (%) 100 | 100 . . . Volleys Fired 107 | 10 50 10 37 Largest 2 | 1 2 2 2 Hottest 60 | 40 60 40 53 Shots Fired 175 | 10 73 18 74 Gun 166 | 10 70 16 70 Cannon . | . . . . Launcher 9 | . 3 2 4 Special . | . . . . Kinetic 115 | . 29 16 70 Thermal 51 | 10 41 . . Explosive 9 | . 3 2 4 Electromagnetic . | . . . . Robot Hit Streak 10 | 6 10 5 10 Robot Miss Streak 4 | 1 4 1 2 Penetration Max . | . . . . Secondary Targets . | . . . . Shots Hit Robots 125 | 8 50 11 56 Core Hits 61 | 3 27 8 23 Critical Kills . | . . . . Critical Parts Destroyed 1 | . . 1 . Critical Strikes 1 | . . 1 . Destroy 1 | . . 1 . Melee Attacks . | . . . . Impact . | . . . . Slashing . | . . . . Piercing . | . . . . Sneak Attacks . | . . . . Combat Hostiles . | . . . . Follow-up Attacks . | . . . . Damage Inflicted 2478 | 92 927 323 1136 Guns 1468 | 92 570 157 649 Cannons . | . . . . Explosions 1010 | . 357 166 487 Melee . | . . . . Ramming . | . . . . Kinetic 1041 | . 235 157 649 Thermal 557 | 92 465 . . Explosive 880 | . 227 166 487 Electromagnetic . | . . . . Impact . | . . . . Slashing . | . . . . Piercing . | . . . . Highest Corruption . | . . . . Average Corruption . | . . . . Corruption Purged . | . . . . Corruption Blocked . | . . . . Overload Shots . | . . . . Overflow Damage 76 | . 40 19 17 Projectiles . | . . . . Explosions 76 | . 40 19 17 Melee . | . . . . Knockbacks . | . . . . Impact . | . . . . Kinetic . | . . . . Secondary . | . . . . Self-Inflicted Damage 65 | . 49 16 . Shots 2 | . 1 1 . Rammed . | . . . . Targets Rammed . | . . . . Kicked . | . . . . Crushed . | . . . . Highest Temperature 108 | . 108 4 24 Average Temperature 21 | . 23 2 11 Received Heat Transfer 165 | . 165 . . Siege Activations . | . . . . Robots Corrupted . | . . . . Combat Hostiles . | . . . . Parts Fried . | . . . . Impact Corruptions . | . . . . Robots Melted . | . . . . Combat Hostiles . | . . . . Parts Melted 2 | 1 1 . . Heat Transferred 1050 | 200 850 . . Parts Sabotaged . | . . . . Parts Stolen . | . . . . Parts Stripped . | . . . . Power Chain Reactions . | . . . . Missiles Intercepted . | . . . . Alert | -11 -10 -10 -10 ------- Run | Scr Mat Min Exi Peak Influence 351 | 10 351 251 . Initial 136 | . 6 136 . Average 98 | 3 101 101 . Maximum Alert Level 1 | . 1 1 . Low Security (%) 84 | 100 81 88 . Level 1 15 | . 18 11 . Level 2 . | . . . . Level 3 . | . . . . Level 4 . | . . . . Level 5 . | . . . . High Security . | . . . . Max Security . | . . . . Squads Dispatched 2 | . 2 . . Investigation . | . . . . Extermination . | . . . . Reinforcement 2 | . 2 . . Assault . | . . . . Garrison . | . . . . Intercept . | . . . . Searches Triggered . | . . . . Construction Impeded . | . . . . Haulers Reinforced . | . . . . Active Scanning Responses . | . . . . Cargo Convoy Interrupts . | . . . . Stealth | -11 -10 -10 -10 --------- Run | Scr Mat Min Exi Distress Signals 1 | . 1 . . Communications Jammed . | . . . . Distress Signals . | . . . . Times Spotted 39 | . 27 6 6 Peak Tracking Total 7 | . 4 3 7 Tactical Retreats 2 | . 1 1 . Traps | -11 -10 -10 -10 ------- Run | Scr Mat Min Exi Traps Triggered . | . . . . Indirectly . | . . . . Trap Hack Attempts . | . . . . Triggered . | . . . . Disarmed . | . . . . Reprogrammed . | . . . . Reused . | . . . . Traps Extracted . | . . . . Installed . | . . . . Triggered . | . . . . Machines | -11 -10 -10 -10 ---------- Run | Scr Mat Min Exi Machines Disabled 8 | . 6 . 2 Max in Single Turn 5 | . 5 . 2 Machines Sabotaged . | . . . . Garrisons Compromised . | . . . . Overloaded Fab Kills . | . . . . Hacking | -11 -10 -10 -10 --------- Run | Scr Mat Min Exi Machines Accessed 2 | . 1 . 1 Terminals 1 | . 1 . . Fabricators . | . . . . Repair Stations . | . . . . Recycling Units . | . . . . Scanalyzers . | . . . . Garrison Access . | . . . . Total Hacks 4 | . 3 . 1 Successful 3 | . 2 . 1 Failed 1 | . 1 . . Catastrophic . | . . . . Database Lockouts . | . . . . Manual 3 | . 2 . 1 Terminals 3 | . 3 . . Fabricators . | . . . . Repair Stations . | . . . . Recycling Units . | . . . . Scanalyzers . | . . . . Garrison Access . | . . . . Terminal Hacks 3 | . 2 . 1 Robot Analysis 2 | . 2 . . EX-Prototype ID Bank 1 | . . . 1 Fabricator Hacks . | . . . . Repair Station Hacks . | . . . . Recycling Unit Hacks . | . . . . Scanalyzer . | . . . . Garrison Access Hacks . | . . . . Unauthorized Hacks . | . . . . Terminals . | . . . . Fabricators . | . . . . Repair Stations . | . . . . Recycling Units . | . . . . Scanalyzers . | . . . . Garrison Access . | . . . . Data Cores Recovered . | . . . . Used . | . . . . Hacking Detections 1 | . 1 . . Full Trace Events . | . . . . Feedback Events . | . . . . Feedback Blocked . | . . . . Robot Schematics Acquired . | . . . . Robots Built . | . . . . Authchips . | . . . . Time . | . . . . Total Robot Build Rating . | . . . . Part Schematics Acquired . | . . . . Parts Built . | . . . . Authchips . | . . . . Time . | . . . . Total Part Build Rating . | . . . . Parts Repaired . | . . . . Time . | . . . . Parts Recycled . | . . . . Recycled Matter . | . . . . Retrieved Matter . | . . . . Retrieved Components . | . . . . Parts Scanalyzed . | . . . . Part Schematics Acquired . | . . . . Parts Damaged . | . . . . Bothacking | -11 -10 -10 -10 ------------ Run | Scr Mat Min Exi Used RIF Installer . | . . . . Robots Hacked . | . . . . Non-combat . | . . . . Combat . | . . . . Robot Hacks Applied . | . . . . Relay Couplers Released . | . . . . Fabnet Peak Effective % . | . . . . Robots Rewired . | . . . . Allies Hacked . | . . . . Hacks Repelled . | . . . . Allies | -11 -10 -10 -10 -------- Run | Scr Mat Min Exi Total Allies 2 | . . 2 . Largest Group 2 | . . 2 2 Highest-Rated Group 42 | . . 42 42 Highest-Rated Ally 31 | . . 31 31 Total Orders . | . . . . Ally Attacks . | . . . . Total Damage . | . . . . Kills . | . . . . Allies Corrupted . | . . . . Allies Melted . | . . . . Intel | -11 -10 -10 -10 ------- Run | Scr Mat Min Exi Robot Analysis Total 2 | . 2 . . Derelict Logs Recovered 1 | . . 1 . Drone Launches . | . . . . Drone Recoveries . | . . . . Exploration | -11 -10 -10 -10 ------------- Run | Scr Mat Min Exi Turns Passed 3881 | 86 1558 1142 1095 Spaces Moved 1626 | 40 621 516 449 Core 3 | 3 . . . Treads 475 | 28 447 . . Legs . | . . . . Wheels 1148 | 9 174 516 449 Hover . | . . . . Flight . | . . . . Fastest Speed 50 | 50 160 215 215 Average Speed 215 | 133 220 215 215 Slowest Speed 320 | 160 320 215 215 Overloaded Moves . | . . . . Propulsion Burnouts . | . . . . Robots Hopped . | . . . . Cave-ins Triggered . | . . . . Exploration Rate (%) 66 | 4 98 97 67 Regions Visited 3 Branch Regions 2 Pre-discovered Areas . | . . . . Known Exits Taken . | . . . . Unknown Exits Taken 3 | 1 1 1 . Scrap Searched 1 | . . 1 . Spaces Dug 24 | . 11 13 . Terrain Destroyed 79 | . 34 25 20 Melee . | . . . . Projectile . | . . . . AOE 79 | . 34 25 20 Terrain Rammed . | . . . . Walls Destroyed . | . . . . Machines Disabled . | . . . . Actions | -11 -10 -10 -10 --------- Run | Scr Mat Min Exi Total 1836 | 60 738 530 508 Wait 35 | . 32 3 . Move 1623 | 39 620 515 449 Hop . | . . . . Pick Up 30 | 4 20 . 6 Fast Attach 8 | 6 2 . . Attach 9 | . 2 . 7 Detach 2 | 1 1 . . Swap 9 | . 5 2 2 Drop 13 | . 6 . 7 Fire 107 | 10 50 10 37 Melee . | . . . . Ram . | . . . . Kick . | . . . . Crush . | . . . . Escape Stasis . | . . . . Rewire . | . . . . Trap . | . . . . Miscellaneous . | . . . . Route ------- -11/Scrapyard -10/Materials (discovered 4 exits: [*Mat x3] / [*Min]) -10/Mines (discovered 3 exits: [*Mat x2] / *Exi) -10/Exiles (discovered 1 exit: [*Min]) History --------- Turn | Location | Event 12 | -11/Scrapyard | Discovered new exit (range 16) 87 | -11/Scrapyard | Entered Materials 293 | -10/Materials | Discovered new exit (range 13) 304 | -10/Materials | Build established: Mutant 532 | -10/Materials | Discovered new exit (range 10) 970 | -10/Materials | Discovered new exit (range 9) 1491 | -10/Materials | Discovered new exit (range 11) 1645 | -10/Materials | Entered Mines 1661 | -10/Mines | Met a Derelict bent on vengeance 1798 | -10/Mines | Deemed a non-threat by the Exiles lab entrance 2129 | -10/Mines | Discovered new exit (range 8) 2285 | -10/Mines | Discovered new exit (range 5) 2766 | -10/Mines | Discovered new exit (range 5) 2787 | -10/Mines | Entered Exiles 2787 | -10/Exiles | Accompanied by 2 allies 2817 | -10/Exiles | Led the pair of lost Derelicts to a safe place 2846 | -10/Exiles | Met 8R-AWN 2876 | -10/Exiles | Met EX-HEX 3063 | -10/Exiles | Discovered new exit (range 15) 3225 | -10/Exiles | Met EX-BIN 3251 | -10/Exiles | Aligned with FarCom system 3253 | -10/Exiles | Given EX-Vault access code 3303 | -10/Exiles | Opened EX-Vault 3350 | -10/Exiles | Warned to stay clear of 0b10 Research branches 3447 | -10/Exiles | Met EX-DEC 3765 | -10/Exiles | Attacked by the Exiles 3828 | -10/Exiles | Core integrity fell below 50% 3866 | -10/Exiles | Core integrity fell below 20% 3882 | -10/Exiles | Destroyed by 8R-AWN with 8R-AWN's Boregun Last Messages --------------- 03817_ Assault Rifle destroyed. 03819_ Penetrated by HV Slug. 03823_ Wheel destroyed. 03823_ Penetrated by HV Slug. 03837_ Destroyed Prototype Protection. 03839_ Penetrated by HV Slug. 03839_ Critical hit (Destroy). 03839_ Lgt. Treads destroyed. 03839_ Penetrated by HV Slug. 03843_ Lgt. Nuclear Core destroyed. 03843_ Penetrated by HV Slug. 03860_ Critical hit (Destroy). 03860_ Assault Rifle destroyed. 03865_ Penetrated by HV Slug. 03868_ The unstable cave ceiling collapses. 03869_ HV Slug penetrates Wall. 03869_ Penetrated by HV Slug. 03882_ Critical hit (Destroy). 03882_ Assault Rifle destroyed. 03882_ Penetrated by HV Slug. Map ----- +----------------------------------------------------+ | """#???????????????????????????????????? | | """#???????????????????????????????????? | | """#???????????????????????????????????? | | """#???????????????????????????????????? | | """"???????????????????????????????????? | | """#???????????????????????????????????? | | "X" """"???????????????????????????????????? | | """ #???????????????????????????????????? | | """""""""#???????????????????????????????????? | | ###########???????????????????????????????????? | | #?????????????????????????????????????????????? | | #?????????????????????????????????????????????? | | ##????????????????????????????????????????????? | | ##???###########?????????????????????????????? | | #####"""" """"##????????????????????????????? | | " """ """"##???????????????????????????? | | "" " #???????????????????????????? | | " """#???????????????????????????? | | a"#???????????#####???????????? | | " "##?????????##" #???????????? | | "###???????#" #???????????? | | " ""#??????##" ##??????????? | | """ "#????### ###????????# | | ####""" ##???# ########## | | ???##""" ##?## #""""## | | ????#"""" !@### | | ???##"" g ## | | ####"""" #### | | #""" ""#?#"""""#### | | "" #"""##?#######??#### | | % ######??????????????### | | ##?????????????????????? | | " ##??????????????????????? | | "" """ "#???????????????????????? | | ##""" " " ""#" ##???????????????????????? | | ??#####""" """# #????????????????????????? | | ??????###""""### ## #?????????????????????????? | | ????????######?? ??????????????????????????? | | ?????????????????? ##??????????????????????????? | | ?????????????????????????????????????????????????? | | ?????????????????????????????????????????????????? | | ?????????????????????????????????????????????????? | | ?????????????????????????????????????????????????? | | ?????????????????????????????????????????????????? | | ?????????????????????????????????????????????????? | | ?????????????????????????????????????????????????? | | ?????????????????????????????????????????????????? | | ?????????????????????????????????????????????????? | | ?????????????????????????????????????????????????? | | ?????????????????????????????????????????????????? | +----------------------------------------------------+ Best States ------------- Heat Dissipation 25 Energy Generation 14 Energy Capacity 160 Matter Stores 300 Matter Capacity 300 Sight Range 16 Terrain Scan Density 10 Armor Coverage 150 Evasion (%) 44 Recoil Reduction 2 Item Schematics ----------------- None Robot Schematics ------------------ None Fabricated ------------ Nothing Alien Tech Used ----------------- None Achievements -------------- None Challenges ------------ None Game ------ Seed DiametricProtonSlayer Manual? 0 Play Time 00:15:26 Cumulative 325.4 hours Start 2022.04.13 @ 22:30:04 End 2022.04.13 @ 22:43:27 Sessions 1 Manual Loads 0 Difficulty Rogue Special Mode None Game No. 480 Rogue 480 Adventurer 0 Explorer 0 Win Type - Total 5 Types 3/0/1/1/0/0/0/0/0 Lore% 79 Gallery% 81 Achievement% 64 Wizard Run 0 Options --------- ASCII 0 Keyboard 1 Movement Numpad Keybinds 0 Fullscreen 2 Font 24/Smallcaps Map View 76x50 Tactical HUD 1 Map Filters NONE Filters NONE Steam 1 RUN: 7872534c-66ad-4a27-ad80-c415c5850da9